[Event "Late-Titled-Tuesday-Blitz-January-30-2024"]
[Site "Chess.com"]
[Date "2024.01.30"]
[Round "7"]
[White "ArturoCaceres"]
[Black "nindjaxx8"]
[Result "1-0"]
[WhiteElo "2469"]
[BlackElo "2573"]
[TimeControl "180+1"]
[EndTime "15:19:01 PST"]
[Termination "ArturoCaceres won on time"]

1. e4 {[%clk 0:02:59]} 1... e6 {[%clk 0:02:59.8]} 2. d4 {[%clk 0:02:44.4]} 2...
d5 {[%clk 0:03:00.7]} 3. exd5 {[%clk 0:02:39.4]} 3... exd5 {[%clk 0:02:59.1]} 4.
Nc3 {[%clk 0:02:40.1]} 4... Nf6 {[%clk 0:02:58.8]} 5. Bd3 {[%clk 0:02:38.9]}
5... Bd6 {[%clk 0:02:59.1]} 6. Nge2 {[%clk 0:02:39.4]} 6... O-O {[%clk
0:02:59.3]} 7. Bg5 {[%clk 0:02:37.3]} 7... c6 {[%clk 0:02:59.2]} 8. Qd2 {[%clk
0:02:37.9]} 8... a5 {[%clk 0:02:54.9]} 9. Bf4 {[%clk 0:02:35.3]} 9... a4 {[%clk
0:02:53.6]} 10. a3 {[%clk 0:02:33.6]} 10... Nbd7 {[%clk 0:02:51.8]} 11. Bxd6
{[%clk 0:02:30.5]} 11... Re8 {[%clk 0:02:50.2]} 12. Bg3 {[%clk 0:02:29.1]} 12...
b5 {[%clk 0:02:49.6]} 13. O-O {[%clk 0:02:28.8]} 13... Bb7 {[%clk 0:02:49.2]}
14. Rfe1 {[%clk 0:02:27.1]} 14... Nb6 {[%clk 0:02:48.9]} 15. Nf4 {[%clk
0:02:27.1]} 15... Qd7 {[%clk 0:02:47.6]} 16. Bh4 {[%clk 0:02:27]} 16... Ne4
{[%clk 0:02:11.1]} 17. Bxe4 {[%clk 0:02:17.9]} 17... dxe4 {[%clk 0:02:10.7]} 18.
Rxe4 {[%clk 0:02:11.5]} 18... Nc4 {[%clk 0:02:06.7]} 19. Qe2 {[%clk 0:02:04.1]}
19... Rxe4 {[%clk 0:02:05.4]} 20. Nxe4 {[%clk 0:02:05]} 20... Qxd4 {[%clk
0:02:03.7]} 21. c3 {[%clk 0:02:00.8]} 21... Qe5 {[%clk 0:02:02.6]} 22. Nd3
{[%clk 0:01:57.2]} 22... Qf5 {[%clk 0:01:59]} 23. Ndc5 {[%clk 0:01:55]} 23...
Re8 {[%clk 0:01:56.1]} 24. Rd1 {[%clk 0:01:50.4]} 24... Bc8 {[%clk 0:01:48.4]}
25. h3 {[%clk 0:01:26.7]} 25... h6 {[%clk 0:01:45.9]} 26. Bg3 {[%clk 0:01:26]}
26... Kh8 {[%clk 0:01:18.5]} 27. Kh2 {[%clk 0:01:21]} 27... Qxc5 {[%clk
0:00:49.4]} 28. Nxc5 {[%clk 0:01:12.2]} 28... Rxe2 {[%clk 0:00:50.3]} 29. Rd8+
{[%clk 0:01:12.2]} 29... Kh7 {[%clk 0:00:50.9]} 30. Rxc8 {[%clk 0:01:12.6]}
30... Rxb2 {[%clk 0:00:50.6]} 31. Rxc6 {[%clk 0:01:03.6]} 31... Nxa3 {[%clk
0:00:46.8]} 32. Nd3 {[%clk 0:00:49.7]} 32... Rb3 {[%clk 0:00:35.3]} 33. Bd6
{[%clk 0:00:44.5]} 33... Nc4 {[%clk 0:00:33.5]} 34. Bb4 {[%clk 0:00:43]} 34...
Rb1 {[%clk 0:00:23.9]} 35. Ra6 {[%clk 0:00:35]} 35... Nd2 {[%clk 0:00:22]} 36.
Kg3 {[%clk 0:00:29.4]} 36... Nf1+ {[%clk 0:00:18]} 37. Kf4 {[%clk 0:00:27.5]}
37... Nd2 {[%clk 0:00:17.4]} 38. Ne5 {[%clk 0:00:26.9]} 38... f6 {[%clk
0:00:16.8]} 39. Nf3 {[%clk 0:00:25.7]} 39... Nc4 {[%clk 0:00:16]} 40. Nd4 {[%clk
0:00:23]} 40... Rb2 {[%clk 0:00:13.4]} 41. Kg3 {[%clk 0:00:21.7]} 41... Nd2
{[%clk 0:00:12.3]} 42. Re6 {[%clk 0:00:16.9]} 42... Nf1+ {[%clk 0:00:10.3]} 43.
Kf3 {[%clk 0:00:15.8]} 43... Nh2+ {[%clk 0:00:10]} 44. Ke3 {[%clk 0:00:10.6]}
44... Nf1+ {[%clk 0:00:09.6]} 45. Kd3 {[%clk 0:00:08.1]} 45... Rd2+ {[%clk
0:00:06.4]} 46. Ke4 {[%clk 0:00:08.2]} 46... Rxf2 {[%clk 0:00:06.9]} 47. g4
{[%clk 0:00:07.8]} 47... Kg6 {[%clk 0:00:04.1]} 48. Kd5 {[%clk 0:00:06.5]} 48...
Nd2 {[%clk 0:00:02.5]} 49. Re7 {[%clk 0:00:06.4]} 49... Nc4 {[%clk 0:00:02.1]}
50. Nf5 {[%clk 0:00:05.9]} 50... Kg5 {[%clk 0:00:02.1]} 51. Rxg7+ {[%clk
0:00:05.4]} 51... Kf4 {[%clk 0:00:02.6]} 52. Kc5 {[%clk 0:00:04]} 52... a3
{[%clk 0:00:02]} 53. Kxb5 {[%clk 0:00:03.7]} 53... a2 {[%clk 0:00:02.5]} 54. Ra7
{[%clk 0:00:04.1]} 54... Ne5 {[%clk 0:00:02.9]} 55. Nd4 {[%clk 0:00:04.3]} 55...
Nd3 {[%clk 0:00:02.4]} 56. Nb3 {[%clk 0:00:02.7]} 56... Rb2 {[%clk 0:00:02]} 57.
Kc4 {[%clk 0:00:02.9]} 57... Ne5+ {[%clk 0:00:02.3]} 58. Kd4 {[%clk 0:00:02.9]}
58... Rxb3 {[%clk 0:00:02.9]} 59. Rxa2 {[%clk 0:00:03.2]} 59... Rb1 {[%clk
0:00:03.4]} 60. Rf2+ {[%clk 0:00:02.9]} 60... Kg3 {[%clk 0:00:03.5]} 61. Rxf6
{[%clk 0:00:03.3]} 61... Rd1+ {[%clk 0:00:03]} 62. Kxe5 {[%clk 0:00:03.5]} 62...
h5 {[%clk 0:00:03.4]} 63. g5 {[%clk 0:00:03.8]} 63... Re1+ {[%clk 0:00:04]} 64.
Kf5 {[%clk 0:00:04.2]} 64... Kh4 {[%clk 0:00:04.7]} 65. g6 {[%clk 0:00:04.6]}
65... Rf1+ {[%clk 0:00:05.1]} 66. Ke6 {[%clk 0:00:05.3]} 66... Re1+ {[%clk
0:00:06]} 67. Kf7 {[%clk 0:00:05.6]} 67... Ra1 {[%clk 0:00:06.3]} 68. g7 {[%clk
0:00:06.2]} 68... Ra7+ {[%clk 0:00:07.2]} 69. Be7 {[%clk 0:00:06.4]} 1-0

[Event "Late-Titled-Tuesday-Blitz-January-30-2024"]
[Site "Chess.com"]
[Date "2024.01.30"]
[Round "7"]
[White "snowlord"]
[Black "Felix-Rose"]
[Result "1/2-1/2"]
[WhiteElo "2853"]
[BlackElo "2394"]
[TimeControl "180+1"]
[EndTime "15:19:08 PST"]
[Termination "Game drawn by repetition"]

1. e4 {[%clk 0:03:00.9]} 1... e5 {[%clk 0:02:59.3]} 2. Nf3 {[%clk 0:03:00.2]}
2... Nc6 {[%clk 0:02:59.7]} 3. Bb5 {[%clk 0:03:00]} 3... a6 {[%clk 0:02:59.8]}
4. Bxc6 {[%clk 0:03:00.4]} 4... dxc6 {[%clk 0:03:00.1]} 5. O-O {[%clk
0:03:01.3]} 5... Qd6 {[%clk 0:02:59.9]} 6. Nc3 {[%clk 0:02:58.5]} 6... Ne7
{[%clk 0:02:56.7]} 7. d4 {[%clk 0:02:57.3]} 7... exd4 {[%clk 0:02:55.8]} 8. Nxd4
{[%clk 0:02:58.1]} 8... Bd7 {[%clk 0:02:46.4]} 9. Nb3 {[%clk 0:02:58.2]} 9...
Ng6 {[%clk 0:02:43.1]} 10. Qe2 {[%clk 0:02:51.6]} 10... O-O-O {[%clk 0:02:40.3]}
11. Rd1 {[%clk 0:02:51.3]} 11... Qe5 {[%clk 0:02:32.4]} 12. Be3 {[%clk
0:02:41.8]} 12... Bd6 {[%clk 0:02:26.9]} 13. g3 {[%clk 0:02:42.1]} 13... h5
{[%clk 0:02:26.2]} 14. f4 {[%clk 0:02:26.2]} 14... Qe8 {[%clk 0:02:16.7]} 15. f5
{[%clk 0:01:52]} 15... Ne5 {[%clk 0:02:10.9]} 16. Bc5 {[%clk 0:01:51.5]} 16...
h4 {[%clk 0:01:49.3]} 17. g4 {[%clk 0:01:43.9]} 17... g6 {[%clk 0:01:33.1]} 18.
Bxd6 {[%clk 0:01:17.3]} 18... cxd6 {[%clk 0:01:32.4]} 19. Rxd6 {[%clk 0:01:18]}
19... gxf5 {[%clk 0:01:32.7]} 20. exf5 {[%clk 0:01:17.8]} 20... Nxg4 {[%clk
0:01:31]} 21. Qxe8 {[%clk 0:01:09.2]} 21... Rhxe8 {[%clk 0:01:16.6]} 22. Rf1
{[%clk 0:00:55.2]} 22... Ne3 {[%clk 0:01:03.9]} 23. Rf3 {[%clk 0:00:49.7]} 23...
Bxf5 {[%clk 0:00:54.4]} 24. Rxd8+ {[%clk 0:00:45.5]} 24... Kxd8 {[%clk
0:00:53.3]} 25. Nd4 {[%clk 0:00:42.3]} 25... Rg8+ {[%clk 0:00:47.5]} 26. Kf2
{[%clk 0:00:36.7]} 26... Ng4+ {[%clk 0:00:47.4]} 27. Ke1 {[%clk 0:00:33]} 27...
Bd7 {[%clk 0:00:34.6]} 28. h3 {[%clk 0:00:31.2]} 28... Ne5 {[%clk 0:00:33.7]}
29. Rf4 {[%clk 0:00:27.8]} 29... Bxh3 {[%clk 0:00:28.4]} 30. Rxh4 {[%clk
0:00:27.3]} 30... Bg4 {[%clk 0:00:21.5]} 31. Rh6 {[%clk 0:00:20.7]} 31... Re8
{[%clk 0:00:17.2]} 32. Kf2 {[%clk 0:00:19.4]} 32... c5 {[%clk 0:00:14.3]} 33.
Nb3 {[%clk 0:00:16.9]} 33... Nd7 {[%clk 0:00:13.5]} 34. Rh7 {[%clk 0:00:13.3]}
34... Be6 {[%clk 0:00:12.8]} 35. Na4 {[%clk 0:00:12.5]} 35... b6 {[%clk
0:00:12]} 36. Nc3 {[%clk 0:00:12.8]} 36... Kc7 {[%clk 0:00:12.1]} 37. Nd2 {[%clk
0:00:10.6]} 37... Rg8 {[%clk 0:00:11.6]} 38. Nde4 {[%clk 0:00:06.8]} 38... Kc6
{[%clk 0:00:10.1]} 39. b3 {[%clk 0:00:06.9]} 39... Rg6 {[%clk 0:00:08.2]} 40.
Rh8 {[%clk 0:00:07]} 40... Nf6 {[%clk 0:00:07.6]} 41. Ra8 {[%clk 0:00:05]} 41...
Kb7 {[%clk 0:00:06.9]} 42. Rd8 {[%clk 0:00:04.8]} 42... Nxe4+ {[%clk 0:00:07.4]}
43. Nxe4 {[%clk 0:00:05.6]} 43... Kc7 {[%clk 0:00:07.5]} 44. Ra8 {[%clk
0:00:05.8]} 44... Bd5 {[%clk 0:00:07.4]} 45. Ra7+ {[%clk 0:00:04.9]} 45... Kb8
{[%clk 0:00:07.5]} 46. Re7 {[%clk 0:00:05.5]} 46... Bxe4 {[%clk 0:00:07.2]} 47.
Rxe4 {[%clk 0:00:06.4]} 47... Re6 {[%clk 0:00:07.5]} 48. Rf4 {[%clk 0:00:06.2]}
48... f6 {[%clk 0:00:08.1]} 49. b4 {[%clk 0:00:06.1]} 49... cxb4 {[%clk
0:00:08.3]} 50. Rxb4 {[%clk 0:00:07]} 50... Kc7 {[%clk 0:00:08.8]} 51. a4 {[%clk
0:00:07.6]} 51... Rc6 {[%clk 0:00:08.8]} 52. Rb2 {[%clk 0:00:04.5]} 52... Rc4
{[%clk 0:00:09.1]} 53. Ra2 {[%clk 0:00:04.9]} 53... Kc6 {[%clk 0:00:09.6]} 54.
Ke3 {[%clk 0:00:05.6]} 54... a5 {[%clk 0:00:09.8]} 55. Kd3 {[%clk 0:00:06.4]}
55... Rc5 {[%clk 0:00:09.5]} 56. c3 {[%clk 0:00:06.9]} 56... Rd5+ {[%clk
0:00:09.8]} 57. Kc4 {[%clk 0:00:05.8]} 57... Re5 {[%clk 0:00:10]} 58. Rh2 {[%clk
0:00:05.5]} 58... Re4+ {[%clk 0:00:10.1]} 59. Kb3 {[%clk 0:00:06.1]} 59... f5
{[%clk 0:00:10.7]} 60. Rh6+ {[%clk 0:00:00.8]} 60... Kb7 {[%clk 0:00:11]} 61.
Rf6 {[%clk 0:00:01.7]} 61... f4 {[%clk 0:00:11.7]} 62. Rf7+ {[%clk 0:00:02.6]}
62... Kc6 {[%clk 0:00:11.9]} 63. Rf6+ {[%clk 0:00:03.5]} 63... Kc5 {[%clk
0:00:10.4]} 64. Rf7 {[%clk 0:00:04.4]} 64... Kc6 {[%clk 0:00:07.1]} 65. Rf6+
{[%clk 0:00:04.8]} 65... Kc7 {[%clk 0:00:07.6]} 66. Rf7+ {[%clk 0:00:05.1]}
66... Kc6 {[%clk 0:00:08.2]} 1/2-1/2

[Event "Late-Titled-Tuesday-Blitz-January-30-2024"]
[Site "Chess.com"]
[Date "2024.01.30"]
[Round "7"]
[White "GasconJR"]
[Black "alexrustemov"]
[Result "1-0"]
[WhiteElo "2604"]
[BlackElo "2745"]
[TimeControl "180+1"]
[EndTime "15:19:11 PST"]
[Termination "GasconJR won by resignation"]

1. e4 {[%clk 0:03:00.9]} 1... e6 {[%clk 0:02:56]} 2. d3 {[%clk 0:02:55.7]} 2...
c5 {[%clk 0:02:55.2]} 3. Nf3 {[%clk 0:02:54.8]} 3... Nc6 {[%clk 0:02:56.1]} 4.
g3 {[%clk 0:02:54.6]} 4... g6 {[%clk 0:02:56.2]} 5. Bg2 {[%clk 0:02:52.9]} 5...
Bg7 {[%clk 0:02:56.4]} 6. c3 {[%clk 0:02:53.1]} 6... Nge7 {[%clk 0:02:56]} 7. h4
{[%clk 0:02:53.7]} 7... h6 {[%clk 0:02:54.9]} 8. d4 {[%clk 0:02:52.4]} 8... d5
{[%clk 0:02:42.4]} 9. e5 {[%clk 0:02:51.2]} 9... Qb6 {[%clk 0:02:32.5]} 10. Bh3
{[%clk 0:02:50]} 10... Bd7 {[%clk 0:02:25.1]} 11. O-O {[%clk 0:02:44.9]} 11...
Rc8 {[%clk 0:02:24.3]} 12. a3 {[%clk 0:02:42]} 12... O-O {[%clk 0:02:20.7]} 13.
Re1 {[%clk 0:02:36.7]} 13... a5 {[%clk 0:02:18.4]} 14. dxc5 {[%clk 0:02:23.6]}
14... Qxc5 {[%clk 0:02:00.6]} 15. Be3 {[%clk 0:02:22.9]} 15... Qc4 {[%clk
0:01:59.7]} 16. Nbd2 {[%clk 0:02:14.4]} 16... Qa6 {[%clk 0:01:57.3]} 17. Nb3
{[%clk 0:02:07.9]} 17... b6 {[%clk 0:01:51.3]} 18. Qd2 {[%clk 0:01:55.9]} 18...
Kh7 {[%clk 0:01:50.9]} 19. h5 {[%clk 0:01:48.5]} 19... Qb7 {[%clk 0:01:37.4]}
20. Nbd4 {[%clk 0:01:45.2]} 20... Nxd4 {[%clk 0:01:35]} 21. Nxd4 {[%clk
0:01:32.6]} 21... Nf5 {[%clk 0:01:34.9]} 22. Nxf5 {[%clk 0:01:08.8]} 22... gxf5
{[%clk 0:01:35.8]} 23. Bd4 {[%clk 0:01:06.8]} 23... Bb5 {[%clk 0:01:28.8]} 24.
Kh2 {[%clk 0:01:04]} 24... Rg8 {[%clk 0:01:26.1]} 25. Rg1 {[%clk 0:01:03.7]}
25... Bf8 {[%clk 0:01:24.1]} 26. g4 {[%clk 0:01:02.2]} 26... fxg4 {[%clk
0:01:22.4]} 27. Bxg4 {[%clk 0:01:01.9]} 27... Bc5 {[%clk 0:01:02.3]} 28. Bd1
{[%clk 0:00:57.7]} 28... f5 {[%clk 0:00:34.7]} 29. exf6 {[%clk 0:00:48.4]} 29...
Bd6+ {[%clk 0:00:32.5]} 30. f4 {[%clk 0:00:43.5]} 30... Qc7 {[%clk 0:00:21.7]}
31. Bc2+ {[%clk 0:00:42.1]} 31... Kh8 {[%clk 0:00:21.6]} 32. f7+ {[%clk
0:00:34.2]} 32... e5 {[%clk 0:00:15.5]} 33. fxg8=Q+ {[%clk 0:00:31.8]} 33...
Rxg8 {[%clk 0:00:16.1]} 34. Rxg8+ {[%clk 0:00:32]} 34... Kxg8 {[%clk 0:00:15.8]}
35. Rg1+ {[%clk 0:00:31.2]} 35... Kf8 {[%clk 0:00:14.3]} 36. Qg2 {[%clk
0:00:15.5]} 36... Qf7 {[%clk 0:00:07.1]} 37. fxe5 {[%clk 0:00:11.6]} 37... Qxh5+
{[%clk 0:00:07]} 38. Qh3 {[%clk 0:00:10.9]} 38... Bxe5+ {[%clk 0:00:07.4]} 39.
Bxe5 {[%clk 0:00:09.7]} 39... Qxe5+ {[%clk 0:00:08.3]} 40. Qg3 {[%clk
0:00:10.2]} 40... Qe2+ {[%clk 0:00:06.9]} 41. Rg2 {[%clk 0:00:08.3]} 41... Qh5+
{[%clk 0:00:07]} 42. Qh3 {[%clk 0:00:07.8]} 42... Qe5+ {[%clk 0:00:05.1]} 43.
Rg3 {[%clk 0:00:08.5]} 43... Qe2+ {[%clk 0:00:04.4]} 44. Qg2 {[%clk 0:00:08.7]}
44... Qh5+ {[%clk 0:00:04.6]} 45. Kg1 {[%clk 0:00:04.3]} 45... Be8 {[%clk
0:00:04.2]} 46. Rf3+ {[%clk 0:00:04.2]} 46... Ke7 {[%clk 0:00:03.9]} 47. Qg3
{[%clk 0:00:03.7]} 47... Kd7 {[%clk 0:00:03.3]} 48. Ba4+ {[%clk 0:00:03.5]}
48... b5 {[%clk 0:00:02.9]} 49. Bxb5+ {[%clk 0:00:03.6]} 49... Kd8 {[%clk
0:00:03.4]} 50. Bxe8 {[%clk 0:00:04.2]} 50... Kxe8 {[%clk 0:00:02.4]} 51. Re3+
{[%clk 0:00:03.3]} 51... Kd7 {[%clk 0:00:02.7]} 52. Qg7+ {[%clk 0:00:03.5]}
52... Kc6 {[%clk 0:00:02.7]} 53. Qf6+ {[%clk 0:00:03.8]} 53... Kb5 {[%clk
0:00:03]} 54. c4+ {[%clk 0:00:04.1]} 54... Ka4 {[%clk 0:00:03.2]} 55. b3+ {[%clk
0:00:04.2]} 55... Kxa3 {[%clk 0:00:03.4]} 56. Qa1+ {[%clk 0:00:04.6]} 56... Kb4
{[%clk 0:00:03.7]} 57. Qe1+ {[%clk 0:00:04.7]} 57... Ka3 {[%clk 0:00:03.3]} 58.
b4+ {[%clk 0:00:05.2]} 58... Ka4 {[%clk 0:00:03.5]} 59. Qa1+ {[%clk 0:00:05.1]}
59... Kxb4 {[%clk 0:00:03.9]} 60. Qa3+ {[%clk 0:00:05.4]} 60... Kxc4 {[%clk
0:00:04.1]} 61. Qb3+ {[%clk 0:00:04.7]} 61... Kc5 {[%clk 0:00:04.1]} 62. Rc3+
{[%clk 0:00:04.3]} 62... Kd6 {[%clk 0:00:04.5]} 63. Qb6+ {[%clk 0:00:04.8]}
63... Ke5 {[%clk 0:00:05]} 64. Re3+ {[%clk 0:00:03.9]} 64... Kf5 {[%clk
0:00:05.4]} 65. Qe6+ {[%clk 0:00:03.9]} 65... Kg5 {[%clk 0:00:05.5]} 66. Re5+
{[%clk 0:00:04]} 66... Kh4 {[%clk 0:00:05.7]} 67. Rxh5+ {[%clk 0:00:04.6]} 67...
Kxh5 {[%clk 0:00:06.6]} 68. Qxd5+ {[%clk 0:00:05.3]} 68... Kg4 {[%clk
0:00:06.9]} 69. Qxa5 {[%clk 0:00:06]} 69... h5 {[%clk 0:00:07.8]} 70. Kh2 {[%clk
0:00:06.1]} 70... h4 {[%clk 0:00:08.7]} 71. Qb4+ {[%clk 0:00:06.7]} 71... Kg5
{[%clk 0:00:09]} 72. Kh3 {[%clk 0:00:07.2]} 72... Kh5 {[%clk 0:00:09.9]} 73.
Qxh4+ {[%clk 0:00:07.4]} 73... Kg6 {[%clk 0:00:10]} 74. Qf4 {[%clk 0:00:08]}
74... Kg7 {[%clk 0:00:10.1]} 75. Qf5 {[%clk 0:00:08.1]} 75... Kh6 {[%clk
0:00:10.4]} 76. Qg4 {[%clk 0:00:08]} 76... Kh7 {[%clk 0:00:10.6]} 77. Kg3 {[%clk
0:00:08.9]} 77... Kh8 {[%clk 0:00:10.8]} 78. Kf4 {[%clk 0:00:09.6]} 1-0

[Event "Late-Titled-Tuesday-Blitz-January-30-2024"]
[Site "Chess.com"]
[Date "2024.01.30"]
[Round "7"]
[White "Kacparov"]
[Black "LevonAronian"]
[Result "1-0"]
[WhiteElo "2953"]
[BlackElo "3088"]
[TimeControl "180+1"]
[EndTime "15:19:15 PST"]
[Termination "Kacparov won by resignation"]

1. e4 {[%clk 0:03:00.9]} 1... c5 {[%clk 0:02:58.7]} 2. Nf3 {[%clk 0:02:56.9]}
2... e6 {[%clk 0:02:59]} 3. d4 {[%clk 0:02:56.2]} 3... cxd4 {[%clk 0:02:59.2]}
4. Nxd4 {[%clk 0:02:57.1]} 4... Nc6 {[%clk 0:02:59.6]} 5. Nc3 {[%clk 0:02:57.3]}
5... Qc7 {[%clk 0:02:59.9]} 6. Be2 {[%clk 0:02:56.9]} 6... Nf6 {[%clk
0:02:58.8]} 7. Be3 {[%clk 0:02:57.1]} 7... a6 {[%clk 0:02:50.5]} 8. O-O {[%clk
0:02:55.9]} 8... b5 {[%clk 0:02:43.4]} 9. Nxc6 {[%clk 0:02:50.8]} 9... dxc6
{[%clk 0:02:43.5]} 10. f4 {[%clk 0:02:45.8]} 10... Bb7 {[%clk 0:02:22.8]} 11.
Bf3 {[%clk 0:02:42.7]} 11... Rd8 {[%clk 0:02:13.1]} 12. Qe2 {[%clk 0:02:41.3]}
12... e5 {[%clk 0:02:13.4]} 13. Rad1 {[%clk 0:02:26]} 13... Rxd1 {[%clk
0:02:07.4]} 14. Rxd1 {[%clk 0:02:23.2]} 14... Be7 {[%clk 0:01:23.5]} 15. fxe5
{[%clk 0:02:18.2]} 15... Qxe5 {[%clk 0:01:22.9]} 16. Qd2 {[%clk 0:01:44.3]}
16... O-O {[%clk 0:01:15.9]} 17. Bf4 {[%clk 0:01:41.8]} 17... Qe6 {[%clk
0:01:00.7]} 18. e5 {[%clk 0:01:41.3]} 18... Ng4 {[%clk 0:00:57.8]} 19. Qd4
{[%clk 0:00:57.9]} 19... f6 {[%clk 0:00:17.3]} 20. exf6 {[%clk 0:00:47.5]} 20...
Nxf6 {[%clk 0:00:15.6]} 21. Qe5 {[%clk 0:00:41.5]} 21... Qf7 {[%clk 0:00:15.5]}
22. Be3 {[%clk 0:00:30.9]} 22... Re8 {[%clk 0:00:13.9]} 23. Qc7 {[%clk
0:00:29.6]} 23... Bf8 {[%clk 0:00:09.2]} 24. Qxf7+ {[%clk 0:00:25]} 24... Kxf7
{[%clk 0:00:10.1]} 25. Kf2 {[%clk 0:00:25.1]} 25... Bc8 {[%clk 0:00:05.7]} 26.
h3 {[%clk 0:00:23.8]} 26... c5 {[%clk 0:00:05.3]} 27. a4 {[%clk 0:00:21.9]}
27... b4 {[%clk 0:00:04.9]} 28. Nd5 {[%clk 0:00:20.8]} 28... Ne4+ {[%clk
0:00:05.2]} 29. Bxe4 {[%clk 0:00:20.5]} 29... Rxe4 {[%clk 0:00:04.8]} 30. b3
{[%clk 0:00:18.6]} 30... h6 {[%clk 0:00:03.8]} 31. Kf3 {[%clk 0:00:18.8]} 31...
Re8 {[%clk 0:00:03.7]} 32. Nb6 {[%clk 0:00:17]} 32... Bf5 {[%clk 0:00:03.3]} 33.
Rd2 {[%clk 0:00:15.7]} 33... Be4+ {[%clk 0:00:03.6]} 34. Kf2 {[%clk 0:00:16.2]}
34... Be7 {[%clk 0:00:03.5]} 35. Nd7 {[%clk 0:00:15.7]} 35... Rc8 {[%clk
0:00:03.4]} 36. Ne5+ {[%clk 0:00:16]} 36... Ke8 {[%clk 0:00:03.7]} 37. Nc4
{[%clk 0:00:16.3]} 37... Rc6 {[%clk 0:00:03.8]} 38. Kg1 {[%clk 0:00:13.9]} 38...
g5 {[%clk 0:00:03.7]} 39. Bf2 {[%clk 0:00:14.2]} 39... Bh7 {[%clk 0:00:03.7]}
40. Ne5 {[%clk 0:00:14]} 40... Re6 {[%clk 0:00:03.8]} 41. Nd3 {[%clk 0:00:13.9]}
41... Rd6 {[%clk 0:00:03.1]} 42. Kf1 {[%clk 0:00:13.6]} 42... Rd5 {[%clk
0:00:03.2]} 43. Ke2 {[%clk 0:00:13.9]} 43... a5 {[%clk 0:00:03.6]} 44. Ne1
{[%clk 0:00:13.8]} 44... Rxd2+ {[%clk 0:00:03.1]} 45. Kxd2 {[%clk 0:00:14.2]}
45... Kd7 {[%clk 0:00:03.2]} 46. Nd3 {[%clk 0:00:14.7]} 46... Kc6 {[%clk
0:00:03.5]} 47. Ne5+ {[%clk 0:00:15.1]} 47... Kd5 {[%clk 0:00:02.5]} 48. Nc4
{[%clk 0:00:15.1]} 48... Bd8 {[%clk 0:00:03.1]} 49. Bg3 {[%clk 0:00:15]} 49...
Be4 {[%clk 0:00:02.9]} 50. Bb8 {[%clk 0:00:15.1]} 50... Bxg2 {[%clk 0:00:02.7]}
51. Ne3+ {[%clk 0:00:15.5]} 51... Ke4 {[%clk 0:00:03.1]} 52. Nxg2 {[%clk
0:00:16.2]} 52... h5 {[%clk 0:00:03.3]} 53. Ke2 {[%clk 0:00:16.2]} 53... c4
{[%clk 0:00:02.2]} 54. Ne3 {[%clk 0:00:16.3]} 54... c3 {[%clk 0:00:01.7]} 55.
Nc4 {[%clk 0:00:16.5]} 55... g4 {[%clk 0:00:01.9]} 56. hxg4 {[%clk 0:00:16.6]}
56... hxg4 {[%clk 0:00:02.8]} 57. Bg3 {[%clk 0:00:16.7]} 57... Kd5 {[%clk
0:00:03.1]} 58. Bf2 {[%clk 0:00:17]} 58... Ke4 {[%clk 0:00:02.7]} 59. Ne3 {[%clk
0:00:15.9]} 59... Kf4 {[%clk 0:00:02.3]} 60. Nd5+ {[%clk 0:00:16]} 60... Ke4
{[%clk 0:00:02.8]} 61. Ne3 {[%clk 0:00:14.2]} 61... Kf4 {[%clk 0:00:03.2]} 62.
Ng2+ {[%clk 0:00:13.8]} 62... Ke4 {[%clk 0:00:03.6]} 63. Bg3 {[%clk 0:00:14.4]}
63... Bb6 {[%clk 0:00:03.3]} 64. Ne1 {[%clk 0:00:14.5]} 64... Bd8 {[%clk
0:00:01.9]} 65. Nd3 {[%clk 0:00:14.8]} 65... Bb6 {[%clk 0:00:02.5]} 66. Nf2+
{[%clk 0:00:14.5]} 66... Kf5 {[%clk 0:00:03.1]} 67. Kd3 {[%clk 0:00:14.5]} 67...
Bd8 {[%clk 0:00:03.6]} 68. Ne4 {[%clk 0:00:15]} 68... Ke6 {[%clk 0:00:04]} 69.
Ke3 {[%clk 0:00:12.3]} 69... Kf5 {[%clk 0:00:04.3]} 70. Nd6+ {[%clk 0:00:12.1]}
70... Ke6 {[%clk 0:00:04.3]} 71. Nc4 {[%clk 0:00:12.1]} 71... Kf5 {[%clk
0:00:04.4]} 72. Kd4 {[%clk 0:00:11.5]} 72... Bf6+ {[%clk 0:00:03.6]} 73. Kd5
{[%clk 0:00:11.2]} 73... Bd8 {[%clk 0:00:04.2]} 74. Ne3+ {[%clk 0:00:11.4]}
74... Kg5 {[%clk 0:00:04.1]} 75. Ke4 {[%clk 0:00:12]} 75... Bb6 {[%clk
0:00:04.2]} 76. Nd5 {[%clk 0:00:12]} 76... Bd8 {[%clk 0:00:04]} 77. Ke5 {[%clk
0:00:11.2]} 77... Kh5 {[%clk 0:00:04.2]} 78. Kf5 {[%clk 0:00:11.6]} 78... Bg5
{[%clk 0:00:03.6]} 79. Nf4+ {[%clk 0:00:11.4]} 1-0